Cogmind - Beta 16 @@@ ROGUE MODE // 2025.12.04 @ 15:06:10 Player: JuustuToug Result: Destroyed by as-57565 with Assembled Rifle Performance ------------- Evolutions (0) 0 Regions Visited (2) 400 Robots Destroyed (34) 170 Value Destroyed (590) 590 Prototype IDs (2) 40 Alien Tech Used (0) 0 Bonus (7) 7 TOTAL SCORE: 1207 Bonus ------- Follower Combat Kills 7 Cogmind --------- Core Integrity 0/250 Matter 223/300 Energy 250/250 System Corruption 4% Temperature Cool (0) Movement Treading (160) Location -10/Mines Parts ------- > --- POWER (1) -------- Ion Engine > --- PROPULSION (2) --- Light Treads Light Treads > --- UTILITY (2) ------ Large Storage Unit Structural Scanner > --- WEAPON (2) ------- Rocket Launcher > --- INVENTORY (15) --- Light Ion Engine Light Treads Light Treads Light Treads Light Treads Structural Scanner Structural Scanner Signal Interpreter Tractor Beam Light Assault Rifle Light Assault Rifle Grenade Launcher Maul Maul Peak State ------------ > --- POWER ------------ Ion Engine > --- PROPULSION ------- Light Treads Light Treads > --- UTILITY ---------- Large Storage Unit Transport Network Coupler > --- WEAPON ----------- Particle Gun Maul > --- INVENTORY -------- Light Ion Engine Light Treads Wheel Structural Scanner Structural Scanner Signal Interpreter Signal Interpreter Tractor Beam Small Laser Small Laser Light Assault Rifle Light Assault Rifle Light Cannon Grenade Launcher Grenade Launcher [Rating: 10] Favorites ----------- Power Ion Engine Engine Ion Engine Propulsion Light Treads Treads Light Treads Utility Large Storage Unit Device Structural Scanner Storage Large Storage Unit Processor Transport Network Coupler Weapon Assault Rifle Energy Gun Particle Gun Ballistic Gun Assault Rifle Ballistic Cannon Battle Cannon Launcher Grenade Launcher Impact Weapon Maul Build | -11 -10 -10 ------- Run | Yrd Mat Min Slots Evolved . | . . . Power . | . . . Propulsion . | . . . Utility . | . . . Weapon . | . . . Parts Attached 25 | 7 15 3 Power 3 | 1 2 . Engine 3 | 1 2 . Core . | . . . Reactor . | . . . Propulsion 4 | 2 2 . Treads 4 | 2 2 . Leg . | . . . Wheel . | . . . Hover . | . . . Flight . | . . . Utility 7 | 2 4 1 Device 2 | 1 . 1 Storage 3 | 1 2 . Processor 2 | . 2 . Hackware . | . . . Protection . | . . . Artifact . | . . . Weapon 11 | 2 7 2 Energy Gun 2 | . 2 . Energy Cannon . | . . . Ballistic Gun 3 | 2 1 . Ballistic Cannon 2 | . 1 1 Launcher 2 | . 1 1 Special Weapon . | . . . Impact Weapon 2 | . 2 . Slashing Weapon . | . . . Piercing Weapon . | . . . Special Melee Weapon . | . . . Unidentified Prototypes . | . . . Parts Lost 5 | . 3 2 Power . | . . . Propulsion 1 | . 1 . Utility 1 | . 1 . Weapon 3 | . 1 2 Highest Loss Streak 2 | . 2 1 To Critical Strikes . | . . . Average Backups 10 | 2 10 14 Power 1 | . 1 1 Propulsion 2 | . 1 4 Utility 2 | . 2 4 Weapon 4 | 1 4 5 Tool/Special . | . . . Unused Backups 15 | . 3 12 Power 1 | . . 1 Propulsion 4 | . 1 3 Utility 5 | . 1 4 Weapon 5 | . 1 4 Tool/Special . | . . . Average Slot Usage (%) 97 | . 97 99 Engine 13 | . 14 13 Treads 27 | . 27 28 Device 2 | . 1 6 Storage 14 | . 14 14 Processor 10 | . 10 7 Energy Gun 8 | . 7 11 Ballistic Gun 12 | . 16 . Ballistic Cannon 1 | . . 4 Impact Weapon 4 | . 2 11 Peak Build Rating 10 | 7 10 10 Average Rating 8 | 5 8 9 On Entrance 5 | . 7 10 Avg Prop Armor Cover (%) . | . . . Naked Turns . | . . . Heaviest Build 32 | 15 31 32 Greatest Support 40 | 40 40 40 Greatest Overweight (x) 1 | . 1 . Average Overweight (x) . | . . . Largest Inventory Capacity 15 | 8 15 15 Average Capacity 14 | 7 14 15 Most Carried 15 | 4 15 15 Average Carried 10 | 2 10 14 Final Capacity 15 | 8 15 15 Final Carried 15 | 3 15 14 Class Distribution -------------------- 93% | Mutant 6% | Scavenger-Mutant Dominant Class ---------------- Mutant | -10/Materials Mutant | -10/Mines Resources | -11 -10 -10 ----------- Run | Yrd Mat Min Matter Collected 1079 | 256 711 112 Remotely . | . . . Salvage Created 948 | 62 806 80 Parts 54 | 7 38 9 Haulers Intercepted 2 | . 2 . Recyclers Shooed 1 | . 1 . Parts Field Recycled . | . . . Retrieved Matter . | . . . Parts Self-Destructed . | . . . Prevented . | . . . Parts Restored . | . . . Kills | -11 -10 -10 ------- Run | Yrd Mat Min Combat Hostiles Destroyed 22 | . 14 8 Melee 1 | . . 1 Guns 9 | . 8 1 Cannons 5 | . 2 3 AOE 6 | . 3 3 Classes Destroyed 9 | 1 7 1 Worker 5 | . 4 1 Tunneler 3 | 3 . . Hauler 2 | . 2 . Recycler 2 | . 2 . Operator 1 | . 1 . Watcher 2 | . 2 . Swarmer 8 | . 3 5 Grunt 11 | . 11 . Assembled 3 | . . 3 Best Kill Streak 4 | 2 4 4 Combat Bots Only 3 | . 3 3 Max Kills in Single Turn 3 | 1 3 2 Gunslinging . | . . . Exploded 2 | . 2 2 Melee 1 | . . 1 Uniques/NPCs Destroyed . | . . . Combat | -11 -10 -10 -------- Run | Yrd Mat Min Hostile Shots Fired 147 | . 110 37 Missed 36 | . 25 11 Hits 111 | . 85 26 Melee 1 | . . 1 Projectile 110 | . 85 25 AOE 4 | . . 4 Damage Taken 1388 | . 1011 377 Core 259 | . 170 89 Absorbed by Shields . | . . . Regen/Repaired (Parts) 164 | . 164 . Core Remaining (%) 100 | 100 . . Volleys Fired 113 | 8 91 14 Largest 2 | 2 2 2 Hottest 98 | 40 95 98 Shots Fired 217 | 16 177 24 Gun 191 | 16 165 10 Cannon 20 | . 10 10 Launcher 6 | . 2 4 Special . | . . . Kinetic 162 | 16 136 10 Thermal 49 | . 39 10 Explosive 6 | . 2 4 Electromagnetic . | . . . Robot Hit Streak 15 | 4 15 5 Robot Miss Streak 7 | 2 7 3 Penetration Max . | . . . Secondary Targets 3 | . 3 . Max Gunslinging Chain 1 | . 1 . Shots Hit Robots 128 | 8 106 14 Core Hits 60 | 3 39 18 Critical Kills . | . . . Critical Parts Destroyed . | . . . Critical Strikes 2 | . 2 . Burn 2 | . 2 . Melee Attacks 6 | . 3 3 Impact 6 | . 3 3 Slashing . | . . . Piercing . | . . . Sneak Attacks 1 | . 1 . Combat Hostiles . | . . . Follow-up Attacks . | . . . Damage Inflicted 2279 | 106 1638 535 Guns 1508 | 106 1291 111 Cannons 197 | . 67 130 Explosions 367 | . 160 207 Melee 187 | . 103 84 Ramming 20 | . 17 3 Kinetic 1312 | 106 1076 130 Thermal 393 | . 282 111 Explosive 367 | . 160 207 Electromagnetic . | . . . Impact 187 | . 103 84 Slashing . | . . . Piercing . | . . . Highest Corruption 4 | . 4 4 Average Corruption 3 | . 3 4 Corruption Purged . | . . . Corruption Blocked . | . . . Effects 42 | . 32 10 Message Errors 8 | . 6 2 Matter Fused 8 | . 6 2 Heat Flow Errors 4 | . 3 1 Energy Discharges 3 | . 2 1 Parts Rejected 2 | . 1 1 Data Loss (minor) 9 | . 6 3 Data Loss (major) 1 | . 1 . Misfires 3 | . 3 . Weapon Failures 4 | . 4 . Overload Shots . | . . . Overflow Damage 65 | . 43 22 Projectiles . | . . . Explosions . | . . . Melee 65 | . 43 22 Knockbacks 5 | . 2 3 Impact 1 | . 1 . Kinetic 4 | . 1 3 Secondary . | . . . Self-Inflicted Damage 11 | . 11 . Shots 1 | . 1 . Rammed 6 | . 4 2 Targets Rammed 6 | . 4 2 Kicked . | . . . Crushed . | . . . Highest Temperature 276 | . 234 276 Average Temperature 63 | . 50 102 Received Heat Transfer 602 | . 522 80 Siege Activations . | . . . Martial Activations . | . . . Shielding Activations . | . . . Robots Disrupted . | . . . Combat Hostiles . | . . . Robots Corrupted 2 | . 2 . Combat Hostiles 1 | . 1 . Parts Fried 1 | . 1 . Impact Corruptions 4 | . 3 1 Robots Melted . | . . . Combat Hostiles . | . . . Parts Melted . | . . . Heat Transferred 1062 | . 803 259 Parts Sabotaged . | . . . Parts Stolen . | . . . Parts Stripped . | . . . Power Chain Reactions . | . . . Alert | -11 -10 -10 ------- Run | Yrd Mat Min Maximum Alert Level . | . . . Low Security (%) 100 | 100 100 100 Level 1 . | . . . Level 2 . | . . . Level 3 . | . . . Level 4 . | . . . Level 5 . | . . . High Security . | . . . Max Security . | . . . Peak Influence 113 | 5 113 92 Initial 39 | . . 39 Average 36 | . 44 27 Influence Increases 721 | 15 503 203 Destroy 0b10 Robot/C 400 | . 280 120 Destroy 0b10 Robot/NC 75 | 15 55 5 Destroy Leader 88 | . 68 20 Allied During Kill 8 | . . 8 Successful Hack 46 | . 46 . Disable Machine 30 | . 30 . Destroy Structure 29 | . 9 20 Lose Combat Pursuer 45 | . 15 30 Influence Decreases 721 | 15 403 303 Entered New Map 61 | . . 61 Time Decay 588 | 15 383 190 Lost Part 32 | . 20 12 Lost Ally 40 | . . 40 Squads Dispatched 3 | . 3 . Investigation 1 | . 1 . Extermination . | . . . Reinforcement 2 | . 2 . Assault . | . . . Garrison . | . . . Intercept . | . . . Searches Triggered . | . . . Construction Impeded . | . . . Haulers Reinforced . | . . . Active Scanning Responses . | . . . Cargo Convoy Interrupts . | . . . Stealth | -11 -10 -10 --------- Run | Yrd Mat Min Distress Signals 2 | . . 2 Communications Jammed . | . . . Distress Signals . | . . . Times Spotted 49 | . 26 23 Peak Tracking Total 5 | . 3 5 Tactical Retreats 5 | . 1 4 Traps | -11 -10 -10 ------- Run | Yrd Mat Min Traps Triggered 4 | . 4 . Indirectly . | . . . Trap Hack Attempts . | . . . Triggered . | . . . Disarmed . | . . . Reprogrammed . | . . . Reused . | . . . Traps Extracted . | . . . Installed . | . . . Triggered . | . . . Machines | -11 -10 -10 ---------- Run | Yrd Mat Min Machines Disabled 2 | . 2 . Max in Single Turn 1 | . 1 . Machines Repaired . | . . . Machines Dismantled . | . . . Machines Sabotaged . | . . . Overloaded Fab Kills . | . . . Hacking | -11 -10 -10 --------- Run | Yrd Mat Min Machines Accessed 7 | . 7 . Terminals 6 | . 6 . Fabricators . | . . . Repair Stations 1 | . 1 . Recycling Units . | . . . Scanalyzers . | . . . Garrison Access . | . . . Total Hacks 28 | . 28 . Successful 18 | . 18 . Failed 10 | . 10 . Catastrophic . | . . . Database Lockouts . | . . . Manual 16 | . 16 . Terminals 21 | . 21 . Fabricators . | . . . Repair Stations 7 | . 7 . Recycling Units . | . . . Scanalyzers . | . . . Garrison Access . | . . . Terminal Hacks 4 | . 4 . Record 1 | . 1 . Prototype ID Bank 1 | . 1 . Branch Access Points 1 | . 1 . Terminal Index 1 | . 1 . Fabricator Hacks . | . . . Repair Station Hacks 5 | . 5 . Scan Component 3 | . 3 . Repair 2 | . 2 . Recycling Unit Hacks . | . . . Scanalyzer . | . . . Garrison Access Hacks . | . . . Unauthorized Hacks 9 | . 9 . Terminals 9 | . 9 . Botnet 4 | . 4 . Skim 5 | . 5 . Fabricators . | . . . Repair Stations . | . . . Recycling Units . | . . . Scanalyzers . | . . . Garrison Access . | . . . Data Cores Recovered . | . . . Used . | . . . Hacking Detections 7 | . 7 . Full Trace Events . | . . . Feedback Events . | . . . Feedback Blocked . | . . . Robot Schematics Acquired . | . . . Robots Built . | . . . Authchips . | . . . Time . | . . . Total Robot Build Rating . | . . . Part Schematics Acquired . | . . . Parts Built . | . . . Authchips . | . . . Time . | . . . Total Part Build Rating . | . . . Part Studies Acquired . | . . . Parts Repaired 2 | . 2 . Time 52 | . 52 . Parts Recycled . | . . . Recycled Matter . | . . . Retrieved Matter . | . . . Retrieved Components . | . . . Parts Scanalyzed . | . . . Part Schematics Acquired . | . . . Parts Damaged . | . . . Bothacking | -11 -10 -10 ------------ Run | Yrd Mat Min Used RIF Installer . | . . . Robots Hacked . | . . . Non-combat . | . . . Combat . | . . . Robot Hacks Applied . | . . . Relay Couplers Released . | . . . Fabnet Peak Effective % . | . . . Robots Rewired . | . . . Allies Hacked . | . . . Hacks Repelled . | . . . Allies | -11 -10 -10 -------- Run | Yrd Mat Min Total Allies 3 | . . 3 Largest Group 2 | . . 2 Highest-Rated Group 46 | . . 46 Highest-Rated Ally 31 | . . 31 Total Orders . | . . . Ally Attacks 7 | . . 7 Total Damage 65 | . . 65 Kills 1 | . . 1 Allies Corrupted . | . . . Allies Melted . | . . . Intel | -11 -10 -10 ------- Run | Yrd Mat Min Active Infowar (turns) 2033 | 69 1441 523 Optics 139 | . 139 . Structural 237 | . . 237 Seismic 229 | 69 160 . T.N.C. 1428 | . 1142 286 Robot Analysis Total . | . . . Derelict Logs Recovered 2 | . . 2 Drone Launches . | . . . Drone Recoveries . | . . . Exploration | -11 -10 -10 ------------- Run | Yrd Mat Min Turns Passed 2400 | 215 1662 523 Spaces Moved 1148 | 109 753 286 Core 8 | 8 . . Treads 1140 | 101 753 286 Legs . | . . . Wheels . | . . . Hover . | . . . Flight . | . . . Fastest Speed 50 | 50 160 160 Average Speed 159 | 151 160 160 Slowest Speed 240 | 160 240 160 Overloaded Moves . | . . . Propulsion Burnouts . | . . . Robots Hopped . | . . . Potential Cave-ins . | . . . Cave-ins Triggered . | . . . Exploration Rate (%) 56 | 6 95 69 Regions Visited 2 Branch Regions 1 Pre-discovered Areas . | . . . Known Exits Taken 1 | . 1 . Unknown Exits Taken 1 | 1 . . Scrap Searched 1 | . . 1 Spaces Dug 12 | . 6 6 Terrain Destroyed 30 | . 6 24 Melee . | . . . Projectile 3 | . . 3 AOE 27 | . 6 21 Terrain Rammed . | . . . Walls Destroyed . | . . . Machines Disabled . | . . . Actions | -11 -10 -10 --------- Run | Yrd Mat Min Total 1482 | 143 1018 321 Wait 123 | 10 108 5 Move 1146 | 108 752 286 Hop . | . . . Pick Up 35 | 10 23 2 Fast Attach 7 | . 6 1 Attach 12 | 7 4 1 Detach 1 | . 1 . Swap 19 | . 14 5 Drop 14 | . 12 2 Fire 113 | 8 91 14 Melee 6 | . 3 3 Ram . | . . . Kick . | . . . Crush 6 | . 4 2 Escape Stasis . | . . . Rewire . | . . . Trap . | . . . Miscellaneous . | . . . Route ------- -11/Scrapyard -10/Materials (discovered 5 exits: *Mat x3 / *Min / [*Sub]) -10/Mines (discovered 1 exit: *Mat) History --------- Turn | Location | Event 5 | -11/Scrapyard | Discovered new exit (range 14) 216 | -11/Scrapyard | Entered Materials 312 | -10/Materials | Build established: Mutant 608 | -10/Materials | Discovered new exit (range 14) 662 | -10/Materials | Identified exit to Mines 763 | -10/Materials | Discovered new exit (range 16) 869 | -10/Materials | Discovered new exit (range 10) 1151 | -10/Materials | Discovered new exit (range 9) 1297 | -10/Materials | Repaired Lgt. Treads 1326 | -10/Materials | Repaired Lgt. Treads 1509 | -10/Materials | Core integrity fell below 50% 1530 | -10/Materials | Identified exit to Materials 1530 | -10/Materials | Learned location of 1 exit from Materials 1578 | -10/Materials | Learned Storage emergency access door positions 1617 | -10/Materials | Learned location of 3 exits from Materials 1645 | -10/Materials | Learned Storage emergency access door positions 1664 | -10/Materials | Learned 2 Storage zone layouts 1673 | -10/Materials | Learned Storage non-interactive machine intel 1691 | -10/Materials | Learned 4 Subcaves zone layouts 1720 | -10/Materials | Learned Recycling recycling unit intel 1878 | -10/Materials | Entered Mines 1881 | -10/Mines | Received a Mining Laser from a helpful Derelict 2000 | -10/Mines | Discovered exit to Materials (range 6) 2116 | -10/Mines | A weapon hastily lodged in a ceiling crevice suddenly fell to the ground 2139 | -10/Mines | Learned 2 Materials zone layouts 2211 | -10/Mines | Received a Rocket Launcher from a helpful Derelict 2216 | -10/Mines | Assembled infested the area 2329 | -10/Mines | Learned Materials terminal intel 2397 | -10/Mines | Core integrity fell below 20% 2401 | -10/Mines | Destroyed by as-57565 with Assembled Rifle Last Messages --------------- 02285_ as-63264 destroyed. 02288_ as-86622 knocked back. 02300_ as-86622 destroyed. 02303_ System corrupted: Matter fused (-8). 02303_ Acquired Ion Engine. 02304_ Particle Gun destroyed. 02305_ Acquired 13 matter. 02307_ Acquired 4 matter. 02313_ Destroyed Asb. F-torch. 02313_ as-30707 system corrupted by crushing effect. 02321_ as-75744 destroyed. 02324_ Acquired 3 matter. 02329_ Acquired derelict log, extracted data. Data stored: Materials terminal intel. 02358_ System corrupted: Heat flow error (+296). 02395_ as-32359 destroyed. 02399_ as-09193 destroyed. 02401_ The unstable cave ceiling collapses. 02401_ Battle Cannon destroyed. Map ----- +----------------------------------------------------+ | | | ????????????????????????????????????????? | | ????????????????????????????????????????? | | ????????????????????????????????????????? | | ????????????????????#######?????????????? | | ??????????????##############????????????? | | ??????????????######## ####???????????? | | ??????????????## #####?????????? | | ??????????????## #### #####????????? | | ??????????????## ##### ###????????? | | ??????????????## ##### ##????????? | | ?????????????### #### ###????????? | | ?????????????### #### ###????????? | | ?????????????## ## ##?????????? | | ?????????????## ###### ### ##?????????? | | ?????????###### ########### #######????? | | ???????######## ########### #######????? | | ???????####""## %% ##??## ##????? | | ???????## #### ##??## ##????? | | ???????## ##"####### ########### ##????? | | ??????### ########## ########### ##????? | | ?????#### ###???## ## ####### ##????? | | ?????### ###??## # ### ##????? | | ?????## ####### ##????? | | ?????## # ### # ##????? | | ?????## % @ < ####???? | | ####### ####??? | | ####### =! * ###?? | | ! d ##?? | | # = # d ##?? | | #### #### ## # ###?? | | ### #### # a ## ####?? | | ? ??## ## % ### ###??? | | ?###???## ### # ##### ##??? | | ?###???#### ### ###### ##??? | | ???????#### ### ####### a ??? ##??? | | ?????????## ### ###########???? ##??? | | #####????## ##????#####???? ##??? | | ##???##### ####????????????? ##??? | | ###?##### ####????????????? ##??? | | ######## ##???????????????? ##??? | | ####### =##?????????????????###??? | | # [%= *%######??????????????????? | | ## #######!#######??????????????????? | | ## ######## ##??????????????????? | | ## [*###???### #### ##??????????????????? | | # = = ##??### #### #######?????????????? | | ## #??### ### #######?????????????? | | ?# [ #?## ### ##?????????????? | | ?# ##### ######### ##?????????????? | +----------------------------------------------------+ Best States ------------- Heat Dissipation 25 Energy Generation 10 Energy Capacity 250 Matter Stores 300 Matter Capacity 300 Sight Range 18 Terrain Scan Density 10 Evasion (%) 40 Recoil Reduction 2 Item Schematics ----------------- None Robot Schematics ------------------ None Fabricated ------------ Nothing Repaired ---------- Lgt. Treads | 30% | -10/Materials Lgt. Treads | 52% | -10/Materials Studied --------- None Alien Tech Used ----------------- None Achievements -------------- None Challenges ------------ None Game ------ Seed NeutronSupercompositeSpear Manual? 0 Play Time 00:14:49 Cumulative 214.0 hours Start 2025.12.04 @ 14:49:55 End 2025.12.04 @ 15:06:10 Sessions 1 Manual Loads 0 Difficulty Rogue Special Mode None Game No. 147 Rogue 147 Adventurer 0 Explorer 0 Win Type - Total 7 Types 5/0/1/1/0/0/0/0/0/0 Lore% 84 Gallery% 76 Achievement% 59 Wizard Run 0 Options --------- Layout 1 ASCII 0 Keyboard 0 Movement Mouse Keybinds 0 Fullscreen 2 Font 24/Smallcaps Map View 50x35 Zoom Use 0% Tactical HUD 1 Map Filters NONE Filters NONE Steam 1 RUN: 9cd2ad05-63da-4936-a5b8-cd5adece5ec9